bitfinex/quotes_BTCUSD_20251010
["timestamp","ask_amount","ask_price","bid_price","bid_amount"]
[1760124094240,6.5106819,116560.0,116550.0,0.00987269]
[1760124094456,6.70585644,116560.0,116550.0,0.00987269]
[1760124094679,6.5106819,116560.0,116550.0,0.00987269]
[1760124094911,6.38226734,116560.0,116550.0,0.00621656]
[1760124095126,5.52109527,116560.0,116550.0,0.00621656]
[1760124095337,6.68667601,116560.0,116550.0,0.00621656]
[1760124096022,6.16160017,116550.0,116540.0,0.001589]
[1760124096250,6.20593566,116550.0,116540.0,0.001589]
[1760124096463,6.31058755,116550.0,116540.0,0.001589]
[1760124096677,7.31028811,116550.0,116540.0,0.001589]
[1760124096891,7.3697208,116550.0,116540.0,0.001589]
[1760124097110,5.91676678,116540.0,116530.0,0.002]
[1760124097363,7.10973516,116540.0,116530.0,0.002]
[1760124097587,6.12125734,116540.0,116530.0,0.002]
[1760124097835,6.99659366,116540.0,116530.0,0.002]
[1760124098317,6.46164435,116520.0,116510.0,0.1232]
[1760124098559,6.81431657,116520.0,116510.0,0.1232]
[1760124098810,6.60129657,116520.0,116510.0,0.1232]
[1760124099045,6.86334399,116520.0,116510.0,0.09627945]
[1760124099274,6.45635411,116520.0,116510.0,0.09627945]
[1760124099488,1.72141096,116510.0,116500.0,0.16702054]
[1760124099725,2.14847138,116510.0,116500.0,0.16702054]
[1760124099946,3.03280018,116510.0,116500.0,3e-08]
[1760124100179,3.03280018,116510.0,116480.0,0.13341938]
[1760124100180,6.38444044,116490.0,116480.0,0.02420438]
[1760124100413,6.86275085,116490.0,116480.0,0.02420438]
[1760124100644,7.70474118,116490.0,116480.0,0.02420438]
[1760124100865,7.76454651,116490.0,116480.0,0.00020438]
[1760124101098,7.89377749,116490.0,116480.0,9.542e-05]
[1760124101325,7.84744566,116490.0,116480.0,9.542e-05]
[1760124101545,5.58445517,116480.0,116460.0,0.00011]
[1760124101781,6.48448466,116460.0,116450.0,0.0284175]
[1760124102010,6.82552508,116460.0,116450.0,0.0284175]
[1760124102249,1.95742508,116460.0,116450.0,0.0284175]
[1760124102518,1.95742508,116460.0,116450.0,0.0044175]
[1760124102519,6.97522507,116460.0,116450.0,0.0044175]
[1760124102749,6.88870132,116460.0,116450.0,0.0044175]
[1760124102969,6.98870131,116460.0,116450.0,0.0044175]
[1760124103201,0.63674751,116450.0,116420.0,0.001]
[1760124103430,5.6459118,116450.0,116420.0,0.001]
[1760124103681,5.66574976,116450.0,116420.0,0.001]
[1760124103915,5.03937838,116450.0,116420.0,0.001]
[1760124104141,5.02365806,116450.0,116420.0,0.001]
[1760124104386,5.61799723,116450.0,116420.0,0.001]
[1760124105334,5.35387723,116450.0,116420.0,0.001]
[1760124105567,5.61063491,116450.0,116420.0,0.001]
[1760124105799,6.45301434,116450.0,116420.0,0.001]
[1760124106025,6.29893153,116450.0,116420.0,0.001]
[1760124106247,6.28465966,116450.0,116420.0,0.001]
[1760124106675,7.16145966,116450.0,116420.0,0.001]
[1760124106898,7.18657162,116450.0,116440.0,1.3665]
[1760124107120,7.15657162,116450.0,116440.0,1.26226278]
[1760124107334,7.13238481,116450.0,116440.0,1e-08]
[1760124107593,6.97182481,116450.0,116440.0,1e-08]
[1760124107808,6.97179693,116450.0,116440.0,1e-08]
[1760124108246,6.97179693,116450.0,116410.0,0.1382288]
[1760124108247,1.50948282,116420.0,116410.0,0.1382288]
[1760124108476,5.01633714,116420.0,116410.0,2e-08]
[1760124108699,5.06682714,116420.0,116410.0,2e-08]
[1760124108902,5.01122861,116420.0,116410.0,2e-08]
[1760124109160,5.33174714,116420.0,116410.0,2e-08]
[1760124109388,5.63174714,116420.0,116410.0,2e-08]
[1760124109623,5.67428629,116420.0,116410.0,2e-08]
[1760124109840,4.32455842,116410.0,116400.0,0.1021]
[1760124110060,4.7976,116360.0,116350.0,0.04620872]
[1760124110280,4.7976,116360.0,116330.0,0.06669503]
[1760124110281,1.24,116340.0,116330.0,0.0005]
[1760124110528,0.3,116320.0,116300.0,0.00221]
[1760124110746,0.3,116320.0,116290.0,0.001]
[1760124110747,0.3,116300.0,116290.0,0.001]
[1760124110977,4.44803093,116300.0,116290.0,0.001]
[1760124111210,4.57746552,116300.0,116290.0,0.001]
[1760124111440,4.6173387,116300.0,116290.0,0.001]
[1760124111662,4.60832396,116300.0,116290.0,0.001]
[1760124111904,4.61960764,116300.0,116290.0,0.001]
[1760124112131,4.59745228,116300.0,116290.0,0.001]
[1760124112361,4.62081228,116300.0,116290.0,0.001]
[1760124112588,4.86125424,116300.0,116290.0,0.001]
[1760124112845,0.63254662,116300.0,116290.0,0.001]
[1760124113065,0.01340424,116300.0,116290.0,0.001]
[1760124113310,0.31340424,116300.0,116290.0,0.09434]
[1760124113544,0.01340424,116300.0,116290.0,0.14044]
[1760124113760,0.29112424,116300.0,116290.0,0.14044]
[1760124114016,0.29112424,116300.0,116290.0,1.14611055]
[1760124114017,0.01340424,116300.0,116290.0,1.14611055]
[1760124114241,0.06336049,116360.0,116310.0,0.28054653]
[1760124114242,0.6,116360.0,116310.0,0.28054653]
[1760124114465,0.36619503,116370.0,116350.0,0.0461]
[1760124114678,0.2778,116360.0,116340.0,0.0461]
[1760124114892,0.2778,116360.0,116320.0,0.0461]
[1760124115172,0.2778,116360.0,116330.0,0.0461]
[1760124115173,0.6,116350.0,116330.0,0.0461]
[1760124115388,0.2778,116360.0,116330.0,0.14334]
[1760124115389,0.27784,116340.0,116330.0,0.14334]
[1760124115614,0.87776,116340.0,116320.0,0.0461]
[1760124115845,0.92726,116340.0,116330.0,0.00015073]
[1760124116090,0.87776,116340.0,116330.0,0.00015073]
[1760124116333,0.92726,116340.0,116330.0,0.00015073]
[1760124116561,0.3,116340.0,116330.0,0.00015073]
[1760124116801,1.0258,116340.0,116330.0,0.00015073]
[1760124117496,1.3753,116340.0,116330.0,0.00015073]
[1760124117732,4.9329,116340.0,116330.0,0.00015073]
[1760124118189,5.3030519,116340.0,116330.0,0.00015073]
[1760124118415,5.4926537,116340.0,116330.0,7.068e-05]
[1760124118642,5.05028428,116340.0,116330.0,7.068e-05]
[1760124118868,5.22219419,116340.0,116330.0,7.068e-05]
[1760124119106,5.52219419,116340.0,116330.0,7.068e-05]
[1760124119333,5.56258811,116340.0,116330.0,7.068e-05]
[1760124119555,5.53696443,116340.0,116330.0,7.068e-05]
[1760124119783,5.36505452,116340.0,116330.0,7.068e-05]
[1760124120019,0.8169867,116340.0,116330.0,7.068e-05]
[1760124120273,1.34357189,116340.0,116330.0,7.068e-05]
[1760124120492,0.01769189,116340.0,116330.0,0.10829314]
[1760124120733,0.17193947,116320.0,116300.0,0.02499999]
[1760124121002,4.66958383,116290.0,116280.0,0.00236]
[1760124121216,5.06240572,116290.0,116280.0,0.00236]
[1760124121438,4.9953969,116290.0,116280.0,0.00236]
[1760124121679,5.14175705,116290.0,116280.0,0.00236]
[1760124121908,4.66977322,116290.0,116280.0,0.00236]
[1760124122129,2.04580132,116290.0,116280.0,0.00236]
[1760124122355,1.4089723,116290.0,116270.0,1.04981]
[1760124122589,0.31773132,116290.0,116270.0,1.04981]
[1760124122871,4.44800568,116280.0,116270.0,0.99961]
[1760124123097,5.60339052,116280.0,116270.0,0.99961]
[1760124123323,5.42024387,116280.0,116270.0,0.99961]
[1760124123548,5.15181904,116280.0,116270.0,0.99961]
[1760124123778,5.04944322,116280.0,116270.0,0.99961]
[1760124123996,4.66768502,116280.0,116270.0,0.99961]
[1760124124229,0.36226165,116280.0,116270.0,0.99961]
[1760124124456,0.35250165,116280.0,116270.0,1.14045]
[1760124124679,0.06226165,116280.0,116270.0,1.14045]
[1760124124888,0.04749172,116280.0,116270.0,1.14045]
[1760124125112,0.36002003,116280.0,116270.0,1.14045]
[1760124125334,0.06970003,116280.0,116270.0,1.19045]
[1760124125554,0.31263929,116280.0,116270.0,1.19045]
[1760124126413,0.29011098,116280.0,116270.0,1.18775378]
[1760124126637,0.29011098,116280.0,116270.0,1.38476718]
[1760124126638,0.00015098,116280.0,116270.0,1.38476718]
[1760124127078,0.00015098,116280.0,116270.0,1.48476717]
[1760124127297,0.00015098,116280.0,116270.0,1.31275376]
[1760124127517,0.00015098,116280.0,116270.0,1.18775378]
[1760124128008,0.28987098,116280.0,116270.0,1.18775378]
[1760124128228,0.28987098,116280.0,116270.0,1.27087584]
[1760124128647,0.28987098,116280.0,116270.0,1.09672378]
[1760124129117,0.28987098,116280.0,116270.0,1.18775378]
[1760124129342,0.3076023,116280.0,116270.0,1.18775378]
[1760124129782,0.32981061,116280.0,116270.0,1.04691378]
[1760124130509,0.33721172,116280.0,116270.0,1.04691378]
[1760124130733,0.65198165,116280.0,116270.0,1.04691378]
[1760124130951,0.65198165,116280.0,116270.0,1.04191378]
[1760124130952,0.74985328,116280.0,116270.0,1.04191378]
[1760124131177,0.66668328,116280.0,116270.0,1.04191378]
[1760124131418,0.0178823,116280.0,116270.0,1.18275378]
[1760124131633,0.36578847,116280.0,116270.0,1.18275378]
[1760124131853,0.36578847,116280.0,116270.0,1.20275378]
[1760124131854,0.0628672,116280.0,116270.0,1.20275378]
[1760124132069,0.38125403,116280.0,116270.0,1.19775378]
[1760124132290,0.32899054,116280.0,116270.0,1.19775378]
[1760124132508,0.35885737,116280.0,116270.0,1.10672378]
[1760124132729,0.33645432,116280.0,116270.0,1.10672378]
[1760124132942,0.3513872,116280.0,116270.0,1.05691378]
[1760124133181,0.66566847,116280.0,116270.0,1.05691378]
[1760124133392,0.60642749,116280.0,116270.0,0.98709713]
[1760124133608,0.31806749,116280.0,116270.0,0.98709713]
[1760124134050,1.05426749,116280.0,116270.0,0.98709713]
[1760124134292,0.01806749,116280.0,116270.0,0.98709713]
[1760124134502,0.72370847,116280.0,116270.0,0.98709713]
[1760124134720,0.73929855,116280.0,116270.0,0.98709713]
[1760124134938,0.66462749,116280.0,116270.0,0.98709713]
[1760124135184,0.66470749,116280.0,116270.0,0.98709713]
[1760124135415,0.09276114,116280.0,116270.0,0.98709713]
[1760124135650,1.03928114,116280.0,116270.0,0.98709713]
[1760124136111,4.97961114,116280.0,116270.0,0.98709713]
[1760124136342,5.29068206,116280.0,116270.0,0.89157856]
[1760124136568,5.35065734,116280.0,116270.0,0.89157856]
[1760124136797,5.29068206,116280.0,116270.0,0.89157856]
[1760124137054,5.52265489,116280.0,116270.0,0.89121477]
[1760124137300,5.62396068,116280.0,116270.0,0.89121477]
[1760124137531,5.6978119,116280.0,116270.0,0.84466891]
[1760124137768,5.6978119,116280.0,116270.0,0.72827799]
[1760124137769,5.70231136,116280.0,116270.0,0.72827799]
[1760124138018,5.73016349,116280.0,116270.0,0.72827799]
[1760124138209,5.68131226,116280.0,116270.0,0.72827799]
[1760124138473,5.44195562,116280.0,116270.0,0.72827799]
[1760124138696,5.34195563,116280.0,116270.0,0.72827799]
[1760124138921,5.44195562,116280.0,116270.0,0.72827799]
[1760124139150,5.79480774,116280.0,116270.0,0.72827799]
[1760124139629,5.09543562,116280.0,116270.0,0.72827799]
[1760124139849,4.86833879,116280.0,116270.0,0.72827799]
[1760124140072,5.96197879,116280.0,116270.0,0.72827799]
[1760124140296,5.96197879,116280.0,116270.0,0.72743799]
[1760124140522,5.96197879,116280.0,116270.0,0.70343799]
[1760124140523,6.28912929,116280.0,116270.0,0.70343799]
[1760124140781,5.91731701,116280.0,116270.0,0.70343799]
[1760124141011,6.18939562,116280.0,116270.0,0.70343799]
[1760124141462,4.55954568,116280.0,116270.0,0.70343799]
[1760124141699,5.65346568,116280.0,116270.0,0.70343799]
[1760124141960,5.6523954,116280.0,116270.0,0.70343799]
[1760124142201,5.9923954,116280.0,116270.0,0.70343799]
[1760124142450,5.9923954,116280.0,116270.0,0.61032445]
[1760124142703,6.08935563,116280.0,116270.0,0.61032445]
[1760124142944,6.289394,116280.0,116270.0,0.61032445]
[1760124143162,4.69847539,116280.0,116270.0,0.61032445]
[1760124143387,5.90342152,116280.0,116270.0,0.54048756]
[1760124143605,5.90342152,116280.0,116270.0,0.52628756]
[1760124143606,5.57338962,116280.0,116270.0,0.52628756]
[1760124143838,5.77104068,116280.0,116270.0,0.52628756]
[1760124144064,5.65904974,116280.0,116270.0,0.52628756]
[1760124144289,5.78856658,116280.0,116270.0,0.52628756]
[1760124144503,5.9605652,116280.0,116270.0,0.52628756]
[1760124144740,5.78856658,116280.0,116270.0,0.52628756]
[1760124144964,5.48856658,116280.0,116270.0,0.52628756]
[1760124145198,0.90948,116280.0,116270.0,0.52628756]
[1760124145413,0.3,116280.0,116270.0,0.52628756]
[1760124145637,1.0348,116280.0,116270.0,0.52628756]
[1760124146107,1.07987696,116280.0,116270.0,0.52628756]
[1760124146554,1.07987696,116280.0,116270.0,0.52410362]
[1760124146773,4.88340396,116280.0,116270.0,0.52410362]
[1760124146987,5.178327,116280.0,116270.0,0.52410362]
[1760124147203,0.65856,116280.0,116270.0,0.52410362]
[1760124147416,1.39304,116280.0,116270.0,0.52410362]
[1760124147847,1.43814943,116280.0,116270.0,0.52410362]
[1760124148065,0.34510943,116280.0,116270.0,0.52410362]
[1760124148329,1.07946943,116280.0,116270.0,0.67036362]
[1760124148569,0.77946943,116280.0,116270.0,0.57207362]
[1760124148827,0.77946943,116280.0,116270.0,0.52410362]
[1760124149121,0.76445017,116280.0,116270.0,0.52410362]
[1760124150077,4.58299643,116280.0,116270.0,0.52410362]
[1760124150305,4.92299643,116280.0,116270.0,0.52410362]
[1760124150532,4.877887,116280.0,116270.0,0.52410362]
[1760124151017,4.8327762,116280.0,116270.0,0.52410362]
[1760124151240,5.28097889,116280.0,116270.0,0.52410362]
[1760124151458,5.235847,116280.0,116270.0,0.52410362]
[1760124151889,0.33009274,116280.0,116270.0,0.62239362]
[1760124152110,0.66693458,116280.0,116270.0,0.52410362]
[1760124152321,0.02257249,116280.0,116270.0,0.52410362]
[1760124152547,0.02257249,116290.0,116270.0,0.62239362]
[1760124152754,0.6444,116280.0,116270.0,0.62289724]
[1760124153185,0.66697249,116280.0,116270.0,0.52460724]
[1760124153486,0.02257249,116280.0,116270.0,0.52460724]
[1760124153700,0.73388,116280.0,116270.0,0.79491065]
[1760124153921,0.73388,116280.0,116270.0,0.62289724]
[1760124154135,0.73388,116280.0,116270.0,0.79491065]
[1760124154347,0.73388,116280.0,116270.0,0.62289724]
[1760124154786,0.73388,116280.0,116270.0,0.79491065]
[1760124155001,0.73388,116280.0,116270.0,0.62289724]
[1760124155209,0.78655193,116280.0,116270.0,0.62289724]
[1760124155431,0.78655193,116280.0,116270.0,0.79491065]
[1760124155656,0.41119193,116280.0,116270.0,0.79491065]
[1760124155885,0.13473813,116290.0,116280.0,0.17199862]
[1760124155886,0.05267193,116290.0,116280.0,0.17199862]
[1760124156120,0.02257188,116300.0,116290.0,0.19698382]
[1760124156341,0.04062321,116300.0,116290.0,1.06289077]
[1760124156593,0.04062321,116300.0,116290.0,1.15921523]
[1760124156594,0.32554321,116300.0,116290.0,1.15921523]
[1760124156826,0.04062321,116300.0,116290.0,1.24233729]
[1760124157053,0.30273133,116300.0,116290.0,1.24233729]
[1760124157270,0.30273133,116300.0,116290.0,1.34233728]
[1760124157492,0.28468,116300.0,116290.0,1.34233728]
[1760124158158,0.01805133,116320.0,116310.0,0.19695425]
[1760124158387,0.01805133,116320.0,116310.0,1.14598326]
[1760124158618,0.30233133,116320.0,116310.0,1.24427326]
[1760124158846,0.01805133,116320.0,116310.0,1.24427326]
[1760124159068,0.01458614,116330.0,116320.0,0.19693946]
[1760124159288,0.20092,116330.0,116320.0,1.19799846]
[1760124159516,0.23067168,116330.0,116320.0,1.63628846]
[1760124160240,0.03109944,116360.0,116350.0,0.19689513]
[1760124160467,0.00882252,116360.0,116350.0,1.14592414]
[1760124160684,0.28472,116360.0,116350.0,1.24421414]
[1760124160907,0.001,116360.0,116350.0,1.34421413]
[1760124161134,0.001,116360.0,116350.0,1.68421413]
[1760124161359,0.001,116360.0,116350.0,1.3400013]
[1760124161818,0.001,116360.0,116350.0,0.52206435]
[1760124162056,0.001,116360.0,116350.0,1.3400013]
[1760124162301,0.0002,116400.0,116390.0,0.17183606]
[1760124162528,0.0002,116400.0,116390.0,0.31809606]
[1760124162529,0.28356,116400.0,116390.0,0.31809606]
[1760124162754,0.3653729,116400.0,116390.0,0.31809606]
[1760124162977,0.28356,116400.0,116390.0,0.31809606]
[1760124163206,0.28356,116400.0,116390.0,0.14626]
[1760124163651,0.0002,116400.0,116390.0,0.31809606]
[1760124163924,0.0002,116400.0,116390.0,0.76200528]
[1760124164148,0.44034447,116460.0,116420.0,0.02078716]
[1760124164149,0.36619503,116460.0,116420.0,0.02078716]
[1760124164373,0.46016,116450.0,116430.0,0.14626]
[1760124164602,0.45575503,116460.0,116430.0,0.14626]
[1760124164603,0.36619503,116460.0,116440.0,0.09829]
[1760124164846,0.08581838,116460.0,116450.0,0.16343475]
[1760124165068,0.81240283,116480.0,116450.0,0.16343475]
[1760124165292,0.44788,116460.0,116450.0,0.04797]
[1760124165505,0.64092,116460.0,116450.0,0.04797]
[1760124165722,0.64092,116460.0,116450.0,0.06514475]
[1760124165939,0.16124,116480.0,116450.0,0.3265949]
[1760124166188,0.35828,116460.0,116450.0,0.04797]
[1760124166400,0.35828,116460.0,116450.0,0.21971753]
[1760124166619,0.35828,116460.0,116450.0,0.04797]
[1760124166855,0.35828,116460.0,116450.0,0.42191675]
[1760124167078,0.70979786,116510.0,116460.0,0.18031232]
[1760124167298,0.70979786,116510.0,116470.0,0.14626]
[1760124167299,1.08808,116500.0,116470.0,0.14626]
[1760124167540,1.39229283,116500.0,116470.0,0.14626]
[1760124167767,0.3,116510.0,116480.0,0.09829]
[1760124167980,0.64012,116500.0,116490.0,0.16342885]
[1760124168454,0.3,116510.0,116490.0,0.33511676]
[1760124168741,0.63992,116500.0,116490.0,0.04797]
[1760124168956,0.3582,116510.0,116490.0,1.04617747]
[1760124169170,0.28152,116500.0,116490.0,1.04617747]
[1760124169393,0.4612,116530.0,116490.0,1.04617747]
[1760124169610,0.3,116530.0,116520.0,0.04648]
[1760124169854,0.31951697,116540.0,116520.0,0.1395497]
[1760124170112,0.6394,116530.0,116520.0,0.1395497]
[1760124170334,0.35816,116540.0,116530.0,0.13964]
[1760124170552,0.3,116560.0,116530.0,0.14822148]
[1760124170780,0.00050665,116540.0,116530.0,0.73023202]
[1760124171012,0.28112,116550.0,116540.0,0.17161489]
[1760124171251,0.16116,116580.0,116540.0,0.891059]
[1760124171473,0.16116,116580.0,116550.0,0.09316]
[1760124171474,0.63908,116570.0,116550.0,0.09316]
[1760124171697,0.00015198,116580.0,116560.0,0.09316]
[1760124171917,0.00015198,116580.0,116540.0,0.16042716]
[1760124172128,0.30015198,116580.0,116540.0,0.13964]
[1760124172351,0.3078591,116580.0,116540.0,0.13964]
[1760124172605,1.03245283,116570.0,116540.0,0.13964]
[1760124172824,0.67131995,116570.0,116530.0,0.03648001]
[1760124173044,0.72812,116560.0,116550.0,0.04648]
[1760124175045,0.73233283,116560.0,116530.0,0.03648001]
[1760124175525,0.39805283,116550.0,116510.0,0.11267503]
[1760124175766,0.27988,116540.0,116510.0,0.20583503]
[1760124175987,0.58409283,116540.0,116510.0,0.20583503]
[1760124176222,0.63359283,116540.0,116510.0,0.04648]
[1760124176475,0.04695,116530.0,116500.0,0.18025695]
[1760124176722,0.00421283,116540.0,116510.0,0.32846486]
[1760124176938,0.00015189,116540.0,116520.0,0.17164011]
[1760124177155,0.00015189,116540.0,116510.0,0.30984281]
[1760124177156,0.28004,116530.0,116510.0,0.30984281]
[1760124177378,0.28004,116530.0,116520.0,0.21812435]
[1760124177607,0.28004,116530.0,116520.0,0.13964]
[1760124178269,0.00015189,116540.0,116530.0,0.17162962]
[1760124178498,0.00015189,116540.0,116530.0,0.27019508]
[1760124178499,0.28015189,116540.0,116530.0,0.27019508]
[1760124178955,0.28015189,116540.0,116520.0,0.04648]
[1760124179814,0.28015189,116540.0,116510.0,0.04648]
[1760124180490,0.40066283,116530.0,116490.0,0.14662]
[1760124180716,0.63323283,116520.0,116480.0,0.04524]
[1760124180936,0.63323283,116520.0,116490.0,0.09865]
[1760124180937,0.00421283,116510.0,116490.0,0.09865]
[1760124181143,0.72676,116500.0,116480.0,0.14389]
[1760124181825,0.63728,116490.0,116480.0,0.14389]
[1760124182045,0.00421283,116510.0,116480.0,0.31559315]
[1760124182264,0.30421283,116510.0,116480.0,0.14389]
[1760124182483,0.30421283,116510.0,116470.0,0.04648]
[1760124182484,0.81583,116500.0,116470.0,0.04648]
[1760124182703,0.30421283,116490.0,116470.0,0.04648]
[1760124182976,0.61421283,116490.0,116450.0,0.14389]
[1760124183212,0.3,116490.0,116470.0,0.14389]
[1760124183453,0.3,116490.0,116460.0,0.18031772]
[1760124183454,0.63692,116480.0,116450.0,0.32422444]
[1760124183723,0.30421283,116490.0,116470.0,0.17171505]
[1760124183966,0.30421283,116500.0,116480.0,0.27035329]
[1760124184464,0.00015184,116510.0,116500.0,0.17167381]
[1760124184698,0.25915184,116510.0,116500.0,0.17167381]
[1760124184919,0.25915184,116510.0,116490.0,0.27033855]
[1760124184920,0.70643184,116510.0,116490.0,0.27033855]
[1760124185137,0.00015184,116510.0,116480.0,0.18028814]
[1760124185352,0.72624,116500.0,116490.0,0.27033702]
[1760124185611,0.72624,116500.0,116480.0,0.17170226]
[1760124185839,0.72624,116500.0,116480.0,0.2703532]
[1760124186073,0.73045283,116500.0,116470.0,0.04524]
[1760124186302,0.36371283,116490.0,116450.0,0.04524]
[1760124186526,0.6368,116480.0,116460.0,0.27896889]
[1760124186742,0.72624,116480.0,116460.0,0.27896889]
[1760124186962,0.72624,116470.0,116450.0,0.21698714]
[1760124187192,0.2788,116460.0,116450.0,0.14389]
[1760124187405,0.27872,116460.0,116450.0,0.3242249]
[1760124187623,0.31421283,116490.0,116460.0,0.18031691]
[1760124187843,0.44724,116470.0,116460.0,0.27896691]
[1760124188056,0.44724,116480.0,116470.0,0.17171684]
[1760124188341,0.35795175,116480.0,116470.0,0.32419274]
[1760124188561,0.27875175,116480.0,116470.0,0.32419274]
[1760124189004,0.27875175,116480.0,116470.0,0.14389]
[1760124189679,0.27875175,116480.0,116470.0,0.04524]
[1760124189900,0.27875175,116480.0,116450.0,0.3242249]
[1760124190115,0.27875175,116480.0,116460.0,0.04524]
[1760124190570,0.27875175,116480.0,116450.0,0.04524]
[1760124190571,0.37830458,116480.0,116450.0,0.04524]
[1760124190819,0.04420283,116470.0,116440.0,0.04524]
[1760124191040,0.32376,116460.0,116430.0,0.14389]
[1760124191264,0.04969283,116460.0,116430.0,0.32425297]
[1760124191506,0.66220123,116470.0,116440.0,0.32424039]
[1760124191720,0.44728,116450.0,116440.0,0.32424039]
[1760124191979,0.64420283,116470.0,116440.0,0.32424039]
[1760124192200,0.72548,116460.0,116450.0,0.31563724]
[1760124192422,0.01806641,116470.0,116460.0,0.17173278]
[1760124192646,0.00015175,116480.0,116460.0,0.21697278]
[1760124192876,0.44743175,116480.0,116470.0,0.14389]
[1760124193098,0.74353895,116480.0,116470.0,0.04524]
[1760124193806,0.74353895,116480.0,116460.0,0.04524]
[1760124193807,0.75138811,116480.0,116460.0,0.04524]
[1760124194261,0.75138811,116480.0,116450.0,0.04524]
[1760124194262,0.84564094,116480.0,116450.0,0.04524]
[1760124194496,0.01036,116470.0,116450.0,0.04524]
[1760124194730,0.278,116460.0,116440.0,0.04524]
[1760124194958,0.2960672,116460.0,116440.0,0.04524]
[1760124195208,0.2960672,116460.0,116430.0,0.04524]
[1760124195209,0.3420372,116460.0,116430.0,0.04524]
[1760124195460,3.60153983,116450.0,116420.0,0.04524]
[1760124195744,0.01457283,116430.0,116400.0,0.04524]
[1760124195991,0.72937283,116420.0,116390.0,0.04524]
[1760124196236,0.02230707,116420.0,116390.0,0.32431767]
[1760124196479,0.72516,116410.0,116390.0,0.22566767]
[1760124196729,0.74325424,116410.0,116390.0,0.31572593]
[1760124196979,0.35788,116400.0,116390.0,0.31572593]
[1760124197202,0.35788,116400.0,116390.0,0.14389]
[1760124197428,0.00015161,116410.0,116390.0,0.14389]
[1760124197666,0.35788,116400.0,116390.0,0.31572546]
[1760124197895,0.35788,116400.0,116390.0,0.04524]
[1760124198113,0.63532,116400.0,116390.0,0.21707606]
[1760124198391,0.72468,116400.0,116390.0,0.04524]
[1760124198645,0.03025105,116410.0,116400.0,0.1718213]
[1760124198884,0.75493105,116410.0,116400.0,0.1718213]
[1760124199121,0.80006918,116410.0,116390.0,0.31572606]
[1760124199347,0.75493105,116410.0,116390.0,0.14389]
[1760124199582,0.03025105,116410.0,116390.0,0.31572572]
[1760124199869,0.03025105,116410.0,116400.0,0.33289343]
[1760124200101,0.03025105,116410.0,116400.0,0.3157113]
[1760124200298,0.72447161,116410.0,116400.0,0.3157113]
[1760124200511,0.00015161,116410.0,116400.0,0.3157113]
[1760124200724,0.00015161,116410.0,116400.0,0.04524]
[1760124200725,0.72443161,116410.0,116400.0,0.04524]
[1760124201186,0.72443161,116410.0,116400.0,0.14327622]
[1760124201620,0.72443161,116410.0,116400.0,0.37617752]
[1760124201830,0.72443161,116410.0,116400.0,0.20435622]
[1760124202975,0.72443161,116410.0,116400.0,0.10570622]
[1760124203409,0.72443161,116410.0,116400.0,0.20435622]
[1760124203634,0.00015161,116410.0,116400.0,0.37617752]
[1760124203871,0.72399161,116410.0,116400.0,0.37617752]
[1760124204106,0.00015161,116410.0,116400.0,0.37617752]
[1760124204334,0.00015161,116410.0,116400.0,1.18808056]
[1760124204563,0.27611161,116410.0,116400.0,1.28808055]
[1760124204831,0.10119161,116410.0,116400.0,1.28808055]
[1760124205053,0.10119161,116410.0,116400.0,0.45929958]
[1760124205282,0.10119161,116410.0,116400.0,0.20435622]
[1760124205503,0.10119161,116410.0,116400.0,0.04462622]
[1760124205974,0.10119161,116410.0,116400.0,0.20435622]
[1760124206224,0.10119161,116410.0,116390.0,0.04524]
[1760124206443,0.08948,116400.0,116390.0,0.04524]
[1760124206905,0.08948,116400.0,116390.0,0.10632]
[1760124207125,0.27552,116400.0,116390.0,0.0624236]
[1760124207340,0.723,116400.0,116390.0,0.20497]
[1760124207555,0.00436444,116410.0,116390.0,0.37680425]
[1760124207777,0.00015161,116410.0,116400.0,0.04524]
[1760124207993,0.00015161,116410.0,116400.0,0.3157113]
[1760124208218,0.00015161,116410.0,116400.0,0.46251336]
[1760124208425,0.27559161,116410.0,116400.0,0.58330051]
[1760124208651,0.27559161,116410.0,116400.0,0.48330052]
[1760124208883,0.29360542,116410.0,116400.0,0.58330051]
[1760124209088,0.29360542,116410.0,116400.0,0.46251336]
[1760124209297,0.01816542,116410.0,116400.0,0.46251336]
[1760124209549,0.29344542,116410.0,116400.0,0.46251336]
[1760124209810,0.29344542,116410.0,116400.0,0.3793913]
[1760124210048,0.29344542,116410.0,116400.0,0.20757]
[1760124210280,0.29344542,116410.0,116400.0,0.10892]
[1760124210485,0.29344542,116410.0,116400.0,0.04524]
[1760124210693,0.32354486,116410.0,116400.0,0.04524]
[1760124210903,0.04826486,116410.0,116400.0,0.20473]
[1760124211153,0.29300542,116410.0,116400.0,0.3765513]
[1760124211380,0.52271757,116430.0,116400.0,0.82982526]
[1760124211602,0.06422051,116450.0,116430.0,0.17177703]
[1760124211603,0.03009944,116440.0,116430.0,0.17177703]
[1760124211814,0.03009944,116440.0,116430.0,1.04498418]
[1760124212032,0.04513813,116450.0,116430.0,1.09592324]
[1760124212252,0.23288,116460.0,116450.0,0.22268659]
[1760124212479,0.24070472,116460.0,116450.0,1.08095374]
[1760124212695,0.24070493,116460.0,116450.0,1.08095374]
[1760124213136,0.04513813,116490.0,116470.0,0.17171803]
[1760124213348,0.05296353,116490.0,116480.0,0.31622329]
[1760124213597,0.28261698,116490.0,116480.0,0.31622329]
[1760124213821,0.32775511,116490.0,116480.0,0.14452]
[1760124214312,0.32775511,116490.0,116480.0,0.04871]
[1760124214582,0.45394511,116490.0,116460.0,0.15310663]
[1760124214823,0.45394511,116490.0,116460.0,0.14352]
[1760124214824,0.04513813,116480.0,116460.0,0.14352]
[1760124215101,0.3638,116470.0,116460.0,0.31525125]
[1760124215335,0.3716254,116470.0,116460.0,0.31525278]
[1760124215571,0.0078254,116470.0,116460.0,0.31525278]
[1760124215808,0.05511511,116490.0,116480.0,0.17170329]
[1760124216052,0.08948,116480.0,116470.0,0.22041511]
[1760124216291,0.08948,116480.0,116470.0,0.14452]
[1760124216292,0.11985074,116480.0,116470.0,0.14452]
[1760124216525,0.0973054,116480.0,116470.0,0.14352]
[1760124216775,0.0973054,116480.0,116470.0,0.2072]
[1760124217046,0.0973054,116480.0,116470.0,0.37891803]
[1760124217255,0.3042899,116480.0,116470.0,0.46204009]
[1760124217531,0.2964645,116480.0,116470.0,0.46204009]
[1760124217746,0.02269608,116490.0,116480.0,0.17170329]
[1760124217971,0.02269608,116490.0,116480.0,0.31622329]
[1760124218203,0.37129914,116490.0,116480.0,0.46302535]
[1760124218424,0.03052682,116490.0,116480.0,0.46302535]
[1760124218663,0.0305278,116490.0,116480.0,0.46202535]
[1760124218908,0.27395158,116490.0,116480.0,0.46202535]